{"text_format":"1","workbook":"xlsx","n_sheets":14,"sheets":["Startseite","Total","Aug","Sep","Okt","Nov","Dez","Jan","Feb","Mar","Apr","Mai","Jun","Jul"],"not_rendered":{"charts":0,"images":0,"macros":0,"external_links":0,"defined_names":43,"comments":0,"pivot_tables":0},"unopened":[],"bounds":{"document_bytes":16777216,"sheet_cells":100000,"rows_first":2000,"rows_last":500,"rows_between":2000,"halvings":0,"cell_chars":16384,"cell_head_chars":4096},"cells_cut":0,"cells_raw":0,"read":"whole","date_system":"1900"}

{"sheet":"Startseite","index":0,"n_rows":18,"n_cols":5,"rows_kept":18,"cut":false,"hidden":false,"merged":[[12,2,12,3],[13,2,13,3],[1,4,3,11],[8,2,9,11],[10,2,11,9],[13,4,13,7],[12,4,12,7]]}
[]
[null,null,null,null,"Zeiterfassung"]
[]
[]
[]
[]
[]
[]
[null,null,"Zusammenzug Schuljahr"]
[]
[null,null,"Enthält das Total des gesamten Jahres. "]
[]
[null,null,"Schuljahr "]
[null,null,"Lehrperson"]
[]
[]
[]
[null,"  © exact construct GmbH"]

{"sheet":"Total","index":1,"n_rows":30,"n_cols":8,"rows_kept":30,"cut":false,"hidden":false,"merged":[[0,1,1,4],[29,4,30,4],[29,1,30,1],[29,2,30,2],[29,5,30,6]]}
[null,"Zusammenfassung Zeiterfassung",null,null,null,null,"Name",{"$f":"Mitarbeiter","v":"00:00:00"}]
[null,null,null,null,null,null,"Schuljahr",{"$f":"Schuljahr","v":"00:00:00"}]
[]
[]
[]
[null,"Monat","Stunden                      Schule","Stunden Zusammenarbeit","Stunden Weiterbildung","Stunden              ohne Zuteilung","TOTAL Monat","Kommentar"]
[null,"August",{"$f":"SUM(tblMonth8[Stunden                         Schule])","v":0},{"$f":"SUM(tblMonth8[Stunden Zusammenarbeit])","v":0},{"$f":"SUM(tblMonth8[Stunden Weiterbildung])","v":0},{"$f":"SUM(tblMonth8[Stunden               ohne Zuteilung])","v":0},{"$f":"SUM(C7:F7)","v":0}]
[null,"September",{"$f":"SUM(tblMonth9[Stunden             Schule])","v":0},{"$f":"SUM(tblMonth9[Stunden Zusammenarbeit])","v":0},{"$f":"SUM(tblMonth9[Stunden Weiterbildung])","v":0},{"$f":"SUM(tblMonth9[Stunden              ohne Zuteilung])","v":0},{"$f":"SUM(C8:F8)","v":0}]
[null,"Oktober",{"$f":"SUM(tblMonth10[Stunden         Schule])","v":0},{"$f":"SUM(tblMonth10[Stunden Zusammenarbeit])","v":0},{"$f":"SUM(tblMonth10[Stunden Weiterbildung])","v":0},{"$f":"SUM(tblMonth10[Stunden             ohne Zuteilung])","v":0},0]
[null,"November",{"$f":"SUM(tblMonth11[Stunden           Schule])","v":0},{"$f":"SUM(tblMonth11[Stunden Zusammenarbeit])","v":0},{"$f":"SUM(tblMonth11[Stunden Weiterbildung])","v":0},{"$f":"SUM(tblMonth11[Stunden              ohne Zuteilung])","v":0},0]
[null,"Dezember",{"$f":"SUM(tblMonth12[Stunden            Schule])","v":0},{"$f":"SUM(tblMonth12[Stunden Zusammenarbeit])","v":0},{"$f":"SUM(tblMonth12[Stunden Weiterbildung])","v":0},{"$f":"SUM(tblMonth12[Stunden              ohne Zuteilung])","v":0},0]
[null,"Januar",{"$f":"SUM(tblMonth1[Stunden            Schule])","v":0},{"$f":"SUM(tblMonth1[Stunden Zusammenarbeit])","v":0},{"$f":"SUM(tblMonth1[Stunden Weiterbildung])","v":0},{"$f":"SUM(tblMonth1[Stunden                 ohne Zuteilung])","v":0},0]
[null,"Februar",{"$f":"SUM(tblMonth2[Stunden               Schule])","v":0},{"$f":"SUM(tblMonth2[Stunden Zusammenarbeit])","v":0},{"$f":"SUM(tblMonth2[Stunden Weiterbildung])","v":0},{"$f":"SUM(tblMonth2[Stunden            ohne Zuteilung])","v":0},0]
[null,"März",{"$f":"SUM(tblMonth3[Stunden            Schule])","v":0},{"$f":"SUM(tblMonth3[Stunden Zusammenarbeit])","v":0},{"$f":"SUM(tblMonth3[Stunden Weiterbildung])","v":0},{"$f":"SUM(tblMonth3[Stunden                ohne Zuteilung])","v":0},0]
[null,"April",{"$f":"SUM(tblMonth4[Stunden              Schule])","v":0},{"$f":"SUM(tblMonth4[Stunden Zusammenarbeit])","v":0},{"$f":"SUM(tblMonth4[Stunden Weiterbildung])","v":0},{"$f":"SUM(tblMonth4[Stunden              ohne Zuteilung])","v":0},0]
[null,"Mai",{"$f":"SUM(tblMonth5[Stunden            Schule])","v":0},{"$f":"SUM(tblMonth5[Stunden Zusammenarbeit])","v":0},{"$f":"SUM(tblMonth5[Stunden Weiterbildung])","v":0},{"$f":"SUM(tblMonth5[Stunden                ohne Zuteilung])","v":0},0]
[null,"Juni",{"$f":"SUM(tblMonth6[Stunden            Schule])","v":0},{"$f":"SUM(tblMonth6[Stunden Zusammenarbeit])","v":0},{"$f":"SUM(tblMonth6[Stunden Weiterbildung])","v":0},{"$f":"SUM(tblMonth6[Stunden                  ohne Zuteilung])","v":0},0]
[null,"Juli",{"$f":"SUM(tblMonth7[Stunden              Schule])","v":0},{"$f":"SUM(tblMonth7[Stunden Zusammenarbeit])","v":0},{"$f":"SUM(tblMonth7[Stunden Weiterbildung])","v":0},{"$f":"SUM(tblMonth7[Stunden            ohne Zuteilung])","v":0},0]
[null,"TOTAL",{"$f":"SUM(C7:C18)","v":0},{"$f":"SUM(D7:D18)","v":0},0,0,0]
[]
[null,"Vorgabe gemäss Planung nBA"]
[]
[null,"Stundenguthaben (+), Stundenschulden (-) laufendes Schuljahr",null,null,null,null,{"$f":"G19-G21","v":0}]
[]
[null,"Übetrag aus Vorjahr"]
[]
[null,"Stundenguthaben (+), Stundenschulden (-) kumuliert",null,null,null,null,{"$f":"G23+G25","v":0}]
[]
[]
[null,"Datum",null,null,"Unterschrift"]

{"sheet":"Aug","index":2,"n_rows":42,"n_cols":8,"rows_kept":42,"cut":false,"hidden":false,"merged":[[0,3,0,4],[41,1,42,1],[41,2,42,2],[41,4,42,4],[41,5,42,6]]}
[null,"Zeiterfassung",null,{"$f":"Mitarbeiter","v":0},null,{"$f":"Schuljahr","v":0},"Monat","August"]
[]
[]
[]
[]
[null,"Tag ","Stunden                         Schule","Stunden Zusammenarbeit","Stunden Weiterbildung","Stunden               ohne Zuteilung","Stunden           pro Tag","Kommentar"]
[null,1,null,null,null,null,{"$f":"SUM(tblMonth8[[#This Row],[Stunden                         Schule]:[Stunden               ohne Zuteilung]])","v":0}]
[null,{"$f":"B7+1","v":2},null,null,null,null,{"$f":"SUM(tblMonth8[[#This Row],[Stunden                         Schule]:[Stunden               ohne Zuteilung]])","v":0}]
[null,{"$f":"B8+1","v":3},null,null,null,null,{"$f":"SUM(tblMonth8[[#This Row],[Stunden                         Schule]:[Stunden               ohne Zuteilung]])","v":0}]
[null,4,null,null,null,null,{"$f":"SUM(tblMonth8[[#This Row],[Stunden                         Schule]:[Stunden               ohne Zuteilung]])","v":0}]
[null,5,null,null,null,null,{"$f":"SUM(tblMonth8[[#This Row],[Stunden                         Schule]:[Stunden               ohne Zuteilung]])","v":0}]
[null,6,null,null,null,null,{"$f":"SUM(tblMonth8[[#This Row],[Stunden                         Schule]:[Stunden               ohne Zuteilung]])","v":0}]
[null,7,null,null,null,null,{"$f":"SUM(tblMonth8[[#This Row],[Stunden                         Schule]:[Stunden               ohne Zuteilung]])","v":0}]
[null,8,null,null,null,null,{"$f":"SUM(tblMonth8[[#This Row],[Stunden                         Schule]:[Stunden               ohne Zuteilung]])","v":0}]
[null,9,null,null,null,null,{"$f":"SUM(tblMonth8[[#This Row],[Stunden                         Schule]:[Stunden               ohne Zuteilung]])","v":0}]
[null,10,null,null,null,null,{"$f":"SUM(tblMonth8[[#This Row],[Stunden                         Schule]:[Stunden               ohne Zuteilung]])","v":0}]
[null,11,null,null,null,null,{"$f":"SUM(tblMonth8[[#This Row],[Stunden                         Schule]:[Stunden               ohne Zuteilung]])","v":0}]
[null,12,null,null,null,null,{"$f":"SUM(tblMonth8[[#This Row],[Stunden                         Schule]:[Stunden               ohne Zuteilung]])","v":0}]
[null,13,null,null,null,null,{"$f":"SUM(tblMonth8[[#This Row],[Stunden                         Schule]:[Stunden               ohne Zuteilung]])","v":0}]
[null,14,null,null,null,null,{"$f":"SUM(tblMonth8[[#This Row],[Stunden                         Schule]:[Stunden               ohne Zuteilung]])","v":0}]
[null,15,null,null,null,null,{"$f":"SUM(tblMonth8[[#This Row],[Stunden                         Schule]:[Stunden               ohne Zuteilung]])","v":0}]
[null,16,null,null,null,null,{"$f":"SUM(tblMonth8[[#This Row],[Stunden                         Schule]:[Stunden               ohne Zuteilung]])","v":0}]
[null,17,null,null,null,null,{"$f":"SUM(tblMonth8[[#This Row],[Stunden                         Schule]:[Stunden               ohne Zuteilung]])","v":0}]
[null,18,null,null,null,null,{"$f":"SUM(tblMonth8[[#This Row],[Stunden                         Schule]:[Stunden               ohne Zuteilung]])","v":0}]
[null,19,null,null,null,null,{"$f":"SUM(tblMonth8[[#This Row],[Stunden                         Schule]:[Stunden               ohne Zuteilung]])","v":0}]
[null,20,null,null,null,null,{"$f":"SUM(tblMonth8[[#This Row],[Stunden                         Schule]:[Stunden               ohne Zuteilung]])","v":0}]
[null,21,null,null,null,null,{"$f":"SUM(tblMonth8[[#This Row],[Stunden                         Schule]:[Stunden               ohne Zuteilung]])","v":0}]
[null,22,null,null,null,null,{"$f":"SUM(tblMonth8[[#This Row],[Stunden                         Schule]:[Stunden               ohne Zuteilung]])","v":0}]
[null,23,null,null,null,null,{"$f":"SUM(tblMonth8[[#This Row],[Stunden                         Schule]:[Stunden               ohne Zuteilung]])","v":0}]
[null,24,null,null,null,null,{"$f":"SUM(tblMonth8[[#This Row],[Stunden                         Schule]:[Stunden               ohne Zuteilung]])","v":0}]
[null,25,null,null,null,null,{"$f":"SUM(tblMonth8[[#This Row],[Stunden                         Schule]:[Stunden               ohne Zuteilung]])","v":0}]
[null,26,null,null,null,null,{"$f":"SUM(tblMonth8[[#This Row],[Stunden                         Schule]:[Stunden               ohne Zuteilung]])","v":0}]
[null,27,null,null,null,null,{"$f":"SUM(tblMonth8[[#This Row],[Stunden                         Schule]:[Stunden               ohne Zuteilung]])","v":0}]
[null,28,null,null,null,null,{"$f":"SUM(tblMonth8[[#This Row],[Stunden                         Schule]:[Stunden               ohne Zuteilung]])","v":0}]
[null,29,null,null,null,null,{"$f":"SUM(tblMonth8[[#This Row],[Stunden                         Schule]:[Stunden               ohne Zuteilung]])","v":0}]
[null,30,null,null,null,null,{"$f":"SUM(tblMonth8[[#This Row],[Stunden                         Schule]:[Stunden               ohne Zuteilung]])","v":0}]
[null,31,null,null,null,null,{"$f":"SUM(tblMonth8[[#This Row],[Stunden                         Schule]:[Stunden               ohne Zuteilung]])","v":0}]
[]
[null,"TOTAL",null,null,null,null,{"$f":"SUM(G7:G38)","v":0}]
[]
[]
[null,"Datum",null,null,"Unterschrift"]

{"sheet":"Sep","index":3,"n_rows":42,"n_cols":8,"rows_kept":42,"cut":false,"hidden":false,"merged":[[0,3,0,4],[41,1,42,1],[41,2,42,2],[41,4,42,4],[41,5,42,6]]}
[null,"Zeiterfassung",null,{"$f":"Mitarbeiter","v":0},null,{"$f":"Schuljahr","v":0},"Monat","September"]
[]
[]
[]
[]
[null,"Tag ","Stunden             Schule","Stunden Zusammenarbeit","Stunden Weiterbildung","Stunden              ohne Zuteilung","Summe","Kommentar"]
[null,1,null,null,null,null,{"$f":"SUM(tblMonth9[[#This Row],[Stunden             Schule]:[Stunden              ohne Zuteilung]])","v":0}]
[null,{"$f":"B7+1","v":2},null,null,null,null,{"$f":"SUM(tblMonth9[[#This Row],[Stunden             Schule]:[Stunden              ohne Zuteilung]])","v":0}]
[null,{"$f":"B8+1","v":3},null,null,null,null,{"$f":"SUM(tblMonth9[[#This Row],[Stunden             Schule]:[Stunden              ohne Zuteilung]])","v":0}]
[null,4,null,null,null,null,{"$f":"SUM(tblMonth9[[#This Row],[Stunden             Schule]:[Stunden              ohne Zuteilung]])","v":0}]
[null,5,null,null,null,null,{"$f":"SUM(tblMonth9[[#This Row],[Stunden             Schule]:[Stunden              ohne Zuteilung]])","v":0}]
[null,6,null,null,null,null,{"$f":"SUM(tblMonth9[[#This Row],[Stunden             Schule]:[Stunden              ohne Zuteilung]])","v":0}]
[null,7,null,null,null,null,{"$f":"SUM(tblMonth9[[#This Row],[Stunden             Schule]:[Stunden              ohne Zuteilung]])","v":0}]
[null,8,null,null,null,null,{"$f":"SUM(tblMonth9[[#This Row],[Stunden             Schule]:[Stunden              ohne Zuteilung]])","v":0}]
[null,9,null,null,null,null,{"$f":"SUM(tblMonth9[[#This Row],[Stunden             Schule]:[Stunden              ohne Zuteilung]])","v":0}]
[null,10,null,null,null,null,{"$f":"SUM(tblMonth9[[#This Row],[Stunden             Schule]:[Stunden              ohne Zuteilung]])","v":0}]
[null,11,null,null,null,null,{"$f":"SUM(tblMonth9[[#This Row],[Stunden             Schule]:[Stunden              ohne Zuteilung]])","v":0}]
[null,12,null,null,null,null,{"$f":"SUM(tblMonth9[[#This Row],[Stunden             Schule]:[Stunden              ohne Zuteilung]])","v":0}]
[null,13,null,null,null,null,{"$f":"SUM(tblMonth9[[#This Row],[Stunden             Schule]:[Stunden              ohne Zuteilung]])","v":0}]
[null,14,null,null,null,null,{"$f":"SUM(tblMonth9[[#This Row],[Stunden             Schule]:[Stunden              ohne Zuteilung]])","v":0}]
[null,15,null,null,null,null,{"$f":"SUM(tblMonth9[[#This Row],[Stunden             Schule]:[Stunden              ohne Zuteilung]])","v":0}]
[null,16,null,null,null,null,{"$f":"SUM(tblMonth9[[#This Row],[Stunden             Schule]:[Stunden              ohne Zuteilung]])","v":0}]
[null,17,null,null,null,null,{"$f":"SUM(tblMonth9[[#This Row],[Stunden             Schule]:[Stunden              ohne Zuteilung]])","v":0}]
[null,18,null,null,null,null,{"$f":"SUM(tblMonth9[[#This Row],[Stunden             Schule]:[Stunden              ohne Zuteilung]])","v":0}]
[null,19,null,null,null,null,{"$f":"SUM(tblMonth9[[#This Row],[Stunden             Schule]:[Stunden              ohne Zuteilung]])","v":0}]
[null,20,null,null,null,null,{"$f":"SUM(tblMonth9[[#This Row],[Stunden             Schule]:[Stunden              ohne Zuteilung]])","v":0}]
[null,21,null,null,null,null,{"$f":"SUM(tblMonth9[[#This Row],[Stunden             Schule]:[Stunden              ohne Zuteilung]])","v":0}]
[null,22,null,null,null,null,{"$f":"SUM(tblMonth9[[#This Row],[Stunden             Schule]:[Stunden              ohne Zuteilung]])","v":0}]
[null,23,null,null,null,null,{"$f":"SUM(tblMonth9[[#This Row],[Stunden             Schule]:[Stunden              ohne Zuteilung]])","v":0}]
[null,24,null,null,null,null,{"$f":"SUM(tblMonth9[[#This Row],[Stunden             Schule]:[Stunden              ohne Zuteilung]])","v":0}]
[null,25,null,null,null,null,{"$f":"SUM(tblMonth9[[#This Row],[Stunden             Schule]:[Stunden              ohne Zuteilung]])","v":0}]
[null,26,null,null,null,null,{"$f":"SUM(tblMonth9[[#This Row],[Stunden             Schule]:[Stunden              ohne Zuteilung]])","v":0}]
[null,27,null,null,null,null,{"$f":"SUM(tblMonth9[[#This Row],[Stunden             Schule]:[Stunden              ohne Zuteilung]])","v":0}]
[null,28,null,null,null,null,{"$f":"SUM(tblMonth9[[#This Row],[Stunden             Schule]:[Stunden              ohne Zuteilung]])","v":0}]
[null,29,null,null,null,null,{"$f":"SUM(tblMonth9[[#This Row],[Stunden             Schule]:[Stunden              ohne Zuteilung]])","v":0}]
[null,30,null,null,null,null,{"$f":"SUM(tblMonth9[[#This Row],[Stunden             Schule]:[Stunden              ohne Zuteilung]])","v":0}]
[null,null,null,null,null,null,{"$f":"SUM(tblMonth9[[#This Row],[Stunden             Schule]:[Stunden              ohne Zuteilung]])","v":0}]
[]
[null,"TOTAL",null,null,null,null,{"$f":"SUM(G7:G38)","v":0}]
[]
[]
[null,"Datum",null,null,"Unterschrift"]

{"sheet":"Okt","index":4,"n_rows":42,"n_cols":8,"rows_kept":42,"cut":false,"hidden":false,"merged":[[0,3,0,4],[41,1,42,1],[41,2,42,2],[41,4,42,4],[41,5,42,6]]}
[null,"Zeiterfassung",null,{"$f":"Mitarbeiter","v":0},null,{"$f":"Schuljahr","v":0},"Monat","Oktober"]
[]
[]
[]
[]
[null,"Tag ","Stunden         Schule","Stunden Zusammenarbeit","Stunden Weiterbildung","Stunden             ohne Zuteilung","Summe","Kommentar"]
[null,1,null,null,null,null,{"$f":"SUM(tblMonth10[[#This Row],[Stunden         Schule]:[Stunden             ohne Zuteilung]])","v":0}]
[null,{"$f":"B7+1","v":2},null,null,null,null,{"$f":"SUM(tblMonth10[[#This Row],[Stunden         Schule]:[Stunden             ohne Zuteilung]])","v":0}]
[null,{"$f":"B8+1","v":3},null,null,null,null,{"$f":"SUM(tblMonth10[[#This Row],[Stunden         Schule]:[Stunden             ohne Zuteilung]])","v":0}]
[null,4,null,null,null,null,{"$f":"SUM(tblMonth10[[#This Row],[Stunden         Schule]:[Stunden             ohne Zuteilung]])","v":0}]
[null,5,null,null,null,null,{"$f":"SUM(tblMonth10[[#This Row],[Stunden         Schule]:[Stunden             ohne Zuteilung]])","v":0}]
[null,6,null,null,null,null,{"$f":"SUM(tblMonth10[[#This Row],[Stunden         Schule]:[Stunden             ohne Zuteilung]])","v":0}]
[null,7,null,null,null,null,{"$f":"SUM(tblMonth10[[#This Row],[Stunden         Schule]:[Stunden             ohne Zuteilung]])","v":0}]
[null,8,null,null,null,null,{"$f":"SUM(tblMonth10[[#This Row],[Stunden         Schule]:[Stunden             ohne Zuteilung]])","v":0}]
[null,9,null,null,null,null,{"$f":"SUM(tblMonth10[[#This Row],[Stunden         Schule]:[Stunden             ohne Zuteilung]])","v":0}]
[null,10,null,null,null,null,{"$f":"SUM(tblMonth10[[#This Row],[Stunden         Schule]:[Stunden             ohne Zuteilung]])","v":0}]
[null,11,null,null,null,null,{"$f":"SUM(tblMonth10[[#This Row],[Stunden         Schule]:[Stunden             ohne Zuteilung]])","v":0}]
[null,12,null,null,null,null,{"$f":"SUM(tblMonth10[[#This Row],[Stunden         Schule]:[Stunden             ohne Zuteilung]])","v":0}]
[null,13,null,null,null,null,{"$f":"SUM(tblMonth10[[#This Row],[Stunden         Schule]:[Stunden             ohne Zuteilung]])","v":0}]
[null,14,null,null,null,null,{"$f":"SUM(tblMonth10[[#This Row],[Stunden         Schule]:[Stunden             ohne Zuteilung]])","v":0}]
[null,15,null,null,null,null,{"$f":"SUM(tblMonth10[[#This Row],[Stunden         Schule]:[Stunden             ohne Zuteilung]])","v":0}]
[null,16,null,null,null,null,{"$f":"SUM(tblMonth10[[#This Row],[Stunden         Schule]:[Stunden             ohne Zuteilung]])","v":0}]
[null,17,null,null,null,null,{"$f":"SUM(tblMonth10[[#This Row],[Stunden         Schule]:[Stunden             ohne Zuteilung]])","v":0}]
[null,18,null,null,null,null,{"$f":"SUM(tblMonth10[[#This Row],[Stunden         Schule]:[Stunden             ohne Zuteilung]])","v":0}]
[null,19,null,null,null,null,{"$f":"SUM(tblMonth10[[#This Row],[Stunden         Schule]:[Stunden             ohne Zuteilung]])","v":0}]
[null,20,null,null,null,null,{"$f":"SUM(tblMonth10[[#This Row],[Stunden         Schule]:[Stunden             ohne Zuteilung]])","v":0}]
[null,21,null,null,null,null,{"$f":"SUM(tblMonth10[[#This Row],[Stunden         Schule]:[Stunden             ohne Zuteilung]])","v":0}]
[null,22,null,null,null,null,{"$f":"SUM(tblMonth10[[#This Row],[Stunden         Schule]:[Stunden             ohne Zuteilung]])","v":0}]
[null,23,null,null,null,null,{"$f":"SUM(tblMonth10[[#This Row],[Stunden         Schule]:[Stunden             ohne Zuteilung]])","v":0}]
[null,24,null,null,null,null,{"$f":"SUM(tblMonth10[[#This Row],[Stunden         Schule]:[Stunden             ohne Zuteilung]])","v":0}]
[null,25,null,null,null,null,{"$f":"SUM(tblMonth10[[#This Row],[Stunden         Schule]:[Stunden             ohne Zuteilung]])","v":0}]
[null,26,null,null,null,null,{"$f":"SUM(tblMonth10[[#This Row],[Stunden         Schule]:[Stunden             ohne Zuteilung]])","v":0}]
[null,27,null,null,null,null,{"$f":"SUM(tblMonth10[[#This Row],[Stunden         Schule]:[Stunden             ohne Zuteilung]])","v":0}]
[null,28,null,null,null,null,{"$f":"SUM(tblMonth10[[#This Row],[Stunden         Schule]:[Stunden             ohne Zuteilung]])","v":0}]
[null,29,null,null,null,null,{"$f":"SUM(tblMonth10[[#This Row],[Stunden         Schule]:[Stunden             ohne Zuteilung]])","v":0}]
[null,30,null,null,null,null,{"$f":"SUM(tblMonth10[[#This Row],[Stunden         Schule]:[Stunden             ohne Zuteilung]])","v":0}]
[null,31,null,null,null,null,{"$f":"SUM(tblMonth10[[#This Row],[Stunden         Schule]:[Stunden             ohne Zuteilung]])","v":0}]
[]
[null,"TOTAL",null,null,null,null,{"$f":"SUM(G7:G38)","v":0}]
[]
[]
[null,"Datum",null,null,"Unterschrift"]

{"sheet":"Nov","index":5,"n_rows":42,"n_cols":8,"rows_kept":42,"cut":false,"hidden":false,"merged":[[0,3,0,4],[41,1,42,1],[41,2,42,2],[41,4,42,4],[41,5,42,6]]}
[null,"Zeiterfassung",null,{"$f":"Mitarbeiter","v":0},null,{"$f":"Schuljahr","v":0},"Monat","November"]
[]
[]
[]
[]
[null,"Tag ","Stunden           Schule","Stunden Zusammenarbeit","Stunden Weiterbildung","Stunden              ohne Zuteilung","Summe","Kommentar"]
[null,1,null,null,null,null,{"$f":"SUM(tblMonth11[[#This Row],[Stunden           Schule]:[Stunden              ohne Zuteilung]])","v":0}]
[null,{"$f":"B7+1","v":2},null,null,null,null,{"$f":"SUM(tblMonth11[[#This Row],[Stunden           Schule]:[Stunden              ohne Zuteilung]])","v":0}]
[null,{"$f":"B8+1","v":3},null,null,null,null,{"$f":"SUM(tblMonth11[[#This Row],[Stunden           Schule]:[Stunden              ohne Zuteilung]])","v":0}]
[null,4,null,null,null,null,{"$f":"SUM(tblMonth11[[#This Row],[Stunden           Schule]:[Stunden              ohne Zuteilung]])","v":0}]
[null,5,null,null,null,null,{"$f":"SUM(tblMonth11[[#This Row],[Stunden           Schule]:[Stunden              ohne Zuteilung]])","v":0}]
[null,6,null,null,null,null,{"$f":"SUM(tblMonth11[[#This Row],[Stunden           Schule]:[Stunden              ohne Zuteilung]])","v":0}]
[null,7,null,null,null,null,{"$f":"SUM(tblMonth11[[#This Row],[Stunden           Schule]:[Stunden              ohne Zuteilung]])","v":0}]
[null,8,null,null,null,null,{"$f":"SUM(tblMonth11[[#This Row],[Stunden           Schule]:[Stunden              ohne Zuteilung]])","v":0}]
[null,9,null,null,null,null,{"$f":"SUM(tblMonth11[[#This Row],[Stunden           Schule]:[Stunden              ohne Zuteilung]])","v":0}]
[null,10,null,null,null,null,{"$f":"SUM(tblMonth11[[#This Row],[Stunden           Schule]:[Stunden              ohne Zuteilung]])","v":0}]
[null,11,null,null,null,null,{"$f":"SUM(tblMonth11[[#This Row],[Stunden           Schule]:[Stunden              ohne Zuteilung]])","v":0}]
[null,12,null,null,null,null,{"$f":"SUM(tblMonth11[[#This Row],[Stunden           Schule]:[Stunden              ohne Zuteilung]])","v":0}]
[null,13,null,null,null,null,{"$f":"SUM(tblMonth11[[#This Row],[Stunden           Schule]:[Stunden              ohne Zuteilung]])","v":0}]
[null,14,null,null,null,null,{"$f":"SUM(tblMonth11[[#This Row],[Stunden           Schule]:[Stunden              ohne Zuteilung]])","v":0}]
[null,15,null,null,null,null,{"$f":"SUM(tblMonth11[[#This Row],[Stunden           Schule]:[Stunden              ohne Zuteilung]])","v":0}]
[null,16,null,null,null,null,{"$f":"SUM(tblMonth11[[#This Row],[Stunden           Schule]:[Stunden              ohne Zuteilung]])","v":0}]
[null,17,null,null,null,null,{"$f":"SUM(tblMonth11[[#This Row],[Stunden           Schule]:[Stunden              ohne Zuteilung]])","v":0}]
[null,18,null,null,null,null,{"$f":"SUM(tblMonth11[[#This Row],[Stunden           Schule]:[Stunden              ohne Zuteilung]])","v":0}]
[null,19,null,null,null,null,{"$f":"SUM(tblMonth11[[#This Row],[Stunden           Schule]:[Stunden              ohne Zuteilung]])","v":0}]
[null,20,null,null,null,null,{"$f":"SUM(tblMonth11[[#This Row],[Stunden           Schule]:[Stunden              ohne Zuteilung]])","v":0}]
[null,21,null,null,null,null,{"$f":"SUM(tblMonth11[[#This Row],[Stunden           Schule]:[Stunden              ohne Zuteilung]])","v":0}]
[null,22,null,null,null,null,{"$f":"SUM(tblMonth11[[#This Row],[Stunden           Schule]:[Stunden              ohne Zuteilung]])","v":0}]
[null,23,null,null,null,null,{"$f":"SUM(tblMonth11[[#This Row],[Stunden           Schule]:[Stunden              ohne Zuteilung]])","v":0}]
[null,24,null,null,null,null,{"$f":"SUM(tblMonth11[[#This Row],[Stunden           Schule]:[Stunden              ohne Zuteilung]])","v":0}]
[null,25,null,null,null,null,{"$f":"SUM(tblMonth11[[#This Row],[Stunden           Schule]:[Stunden              ohne Zuteilung]])","v":0}]
[null,26,null,null,null,null,{"$f":"SUM(tblMonth11[[#This Row],[Stunden           Schule]:[Stunden              ohne Zuteilung]])","v":0}]
[null,27,null,null,null,null,{"$f":"SUM(tblMonth11[[#This Row],[Stunden           Schule]:[Stunden              ohne Zuteilung]])","v":0}]
[null,28,null,null,null,null,{"$f":"SUM(tblMonth11[[#This Row],[Stunden           Schule]:[Stunden              ohne Zuteilung]])","v":0}]
[null,29,null,null,null,null,{"$f":"SUM(tblMonth11[[#This Row],[Stunden           Schule]:[Stunden              ohne Zuteilung]])","v":0}]
[null,30,null,null,null,null,{"$f":"SUM(tblMonth11[[#This Row],[Stunden           Schule]:[Stunden              ohne Zuteilung]])","v":0}]
[null,null,null,null,null,null,{"$f":"SUM(tblMonth11[[#This Row],[Stunden           Schule]:[Stunden              ohne Zuteilung]])","v":0}]
[]
[null,"TOTAL",null,null,null,null,{"$f":"SUM(G7:G38)","v":0}]
[]
[]
[null,"Datum",null,null,"Unterschrift"]

{"sheet":"Dez","index":6,"n_rows":42,"n_cols":8,"rows_kept":42,"cut":false,"hidden":false,"merged":[[0,3,0,4],[41,1,42,1],[41,2,42,2],[41,4,42,4],[41,5,42,6]]}
[null,"Zeiterfassung",null,{"$f":"Mitarbeiter","v":0},null,{"$f":"Schuljahr","v":0},"Monat","Dezember"]
[]
[]
[]
[]
[null,"Tag ","Stunden            Schule","Stunden Zusammenarbeit","Stunden Weiterbildung","Stunden              ohne Zuteilung","Summe","Kommentar"]
[null,1,null,null,null,null,{"$f":"SUM(tblMonth12[[#This Row],[Stunden            Schule]:[Stunden              ohne Zuteilung]])","v":0}]
[null,{"$f":"B7+1","v":2},null,null,null,null,{"$f":"SUM(tblMonth12[[#This Row],[Stunden            Schule]:[Stunden              ohne Zuteilung]])","v":0}]
[null,{"$f":"B8+1","v":3},null,null,null,null,{"$f":"SUM(tblMonth12[[#This Row],[Stunden            Schule]:[Stunden              ohne Zuteilung]])","v":0}]
[null,4,null,null,null,null,{"$f":"SUM(tblMonth12[[#This Row],[Stunden            Schule]:[Stunden              ohne Zuteilung]])","v":0}]
[null,5,null,null,null,null,{"$f":"SUM(tblMonth12[[#This Row],[Stunden            Schule]:[Stunden              ohne Zuteilung]])","v":0}]
[null,6,null,null,null,null,{"$f":"SUM(tblMonth12[[#This Row],[Stunden            Schule]:[Stunden              ohne Zuteilung]])","v":0}]
[null,7,null,null,null,null,{"$f":"SUM(tblMonth12[[#This Row],[Stunden            Schule]:[Stunden              ohne Zuteilung]])","v":0}]
[null,8,null,null,null,null,{"$f":"SUM(tblMonth12[[#This Row],[Stunden            Schule]:[Stunden              ohne Zuteilung]])","v":0}]
[null,9,null,null,null,null,{"$f":"SUM(tblMonth12[[#This Row],[Stunden            Schule]:[Stunden              ohne Zuteilung]])","v":0}]
[null,10,null,null,null,null,{"$f":"SUM(tblMonth12[[#This Row],[Stunden            Schule]:[Stunden              ohne Zuteilung]])","v":0}]
[null,11,null,null,null,null,{"$f":"SUM(tblMonth12[[#This Row],[Stunden            Schule]:[Stunden              ohne Zuteilung]])","v":0}]
[null,12,null,null,null,null,{"$f":"SUM(tblMonth12[[#This Row],[Stunden            Schule]:[Stunden              ohne Zuteilung]])","v":0}]
[null,13,null,null,null,null,{"$f":"SUM(tblMonth12[[#This Row],[Stunden            Schule]:[Stunden              ohne Zuteilung]])","v":0}]
[null,14,null,null,null,null,{"$f":"SUM(tblMonth12[[#This Row],[Stunden            Schule]:[Stunden              ohne Zuteilung]])","v":0}]
[null,15,null,null,null,null,{"$f":"SUM(tblMonth12[[#This Row],[Stunden            Schule]:[Stunden              ohne Zuteilung]])","v":0}]
[null,16,null,null,null,null,{"$f":"SUM(tblMonth12[[#This Row],[Stunden            Schule]:[Stunden              ohne Zuteilung]])","v":0}]
[null,17,null,null,null,null,{"$f":"SUM(tblMonth12[[#This Row],[Stunden            Schule]:[Stunden              ohne Zuteilung]])","v":0}]
[null,18,null,null,null,null,{"$f":"SUM(tblMonth12[[#This Row],[Stunden            Schule]:[Stunden              ohne Zuteilung]])","v":0}]
[null,19,null,null,null,null,{"$f":"SUM(tblMonth12[[#This Row],[Stunden            Schule]:[Stunden              ohne Zuteilung]])","v":0}]
[null,20,null,null,null,null,{"$f":"SUM(tblMonth12[[#This Row],[Stunden            Schule]:[Stunden              ohne Zuteilung]])","v":0}]
[null,21,null,null,null,null,{"$f":"SUM(tblMonth12[[#This Row],[Stunden            Schule]:[Stunden              ohne Zuteilung]])","v":0}]
[null,22,null,null,null,null,{"$f":"SUM(tblMonth12[[#This Row],[Stunden            Schule]:[Stunden              ohne Zuteilung]])","v":0}]
[null,23,null,null,null,null,{"$f":"SUM(tblMonth12[[#This Row],[Stunden            Schule]:[Stunden              ohne Zuteilung]])","v":0}]
[null,24,null,null,null,null,{"$f":"SUM(tblMonth12[[#This Row],[Stunden            Schule]:[Stunden              ohne Zuteilung]])","v":0}]
[null,25,null,null,null,null,{"$f":"SUM(tblMonth12[[#This Row],[Stunden            Schule]:[Stunden              ohne Zuteilung]])","v":0}]
[null,26,null,null,null,null,{"$f":"SUM(tblMonth12[[#This Row],[Stunden            Schule]:[Stunden              ohne Zuteilung]])","v":0}]
[null,27,null,null,null,null,{"$f":"SUM(tblMonth12[[#This Row],[Stunden            Schule]:[Stunden              ohne Zuteilung]])","v":0}]
[null,28,null,null,null,null,{"$f":"SUM(tblMonth12[[#This Row],[Stunden            Schule]:[Stunden              ohne Zuteilung]])","v":0}]
[null,29,null,null,null,null,{"$f":"SUM(tblMonth12[[#This Row],[Stunden            Schule]:[Stunden              ohne Zuteilung]])","v":0}]
[null,30,null,null,null,null,{"$f":"SUM(tblMonth12[[#This Row],[Stunden            Schule]:[Stunden              ohne Zuteilung]])","v":0}]
[null,31,null,null,null,null,{"$f":"SUM(tblMonth12[[#This Row],[Stunden            Schule]:[Stunden              ohne Zuteilung]])","v":0}]
[]
[null,"TOTAL",null,null,null,null,{"$f":"SUM(G7:G38)","v":0}]
[]
[]
[null,"Datum",null,null,"Unterschrift"]

{"sheet":"Jan","index":7,"n_rows":42,"n_cols":8,"rows_kept":42,"cut":false,"hidden":false,"merged":[[0,3,0,4],[41,1,42,1],[41,2,42,2],[41,4,42,4],[41,5,42,6]]}
[null,"Zeiterfassung",null,{"$f":"Mitarbeiter","v":0},null,{"$f":"Schuljahr","v":0},"Monat","Januar"]
[]
[]
[]
[]
[null,"Tag ","Stunden            Schule","Stunden Zusammenarbeit","Stunden Weiterbildung","Stunden                 ohne Zuteilung","Summe","Kommentar"]
[null,1,null,null,null,null,{"$f":"SUM(tblMonth1[[#This Row],[Stunden            Schule]:[Stunden                 ohne Zuteilung]])","v":0}]
[null,{"$f":"B7+1","v":2},null,null,null,null,{"$f":"SUM(tblMonth1[[#This Row],[Stunden            Schule]:[Stunden                 ohne Zuteilung]])","v":0}]
[null,{"$f":"B8+1","v":3},null,null,null,null,{"$f":"SUM(tblMonth1[[#This Row],[Stunden            Schule]:[Stunden                 ohne Zuteilung]])","v":0}]
[null,4,null,null,null,null,{"$f":"SUM(tblMonth1[[#This Row],[Stunden            Schule]:[Stunden                 ohne Zuteilung]])","v":0}]
[null,5,null,null,null,null,{"$f":"SUM(tblMonth1[[#This Row],[Stunden            Schule]:[Stunden                 ohne Zuteilung]])","v":0}]
[null,6,null,null,null,null,{"$f":"SUM(tblMonth1[[#This Row],[Stunden            Schule]:[Stunden                 ohne Zuteilung]])","v":0}]
[null,7,null,null,null,null,{"$f":"SUM(tblMonth1[[#This Row],[Stunden            Schule]:[Stunden                 ohne Zuteilung]])","v":0}]
[null,8,null,null,null,null,{"$f":"SUM(tblMonth1[[#This Row],[Stunden            Schule]:[Stunden                 ohne Zuteilung]])","v":0}]
[null,9,null,null,null,null,{"$f":"SUM(tblMonth1[[#This Row],[Stunden            Schule]:[Stunden                 ohne Zuteilung]])","v":0}]
[null,10,null,null,null,null,{"$f":"SUM(tblMonth1[[#This Row],[Stunden            Schule]:[Stunden                 ohne Zuteilung]])","v":0}]
[null,11,null,null,null,null,{"$f":"SUM(tblMonth1[[#This Row],[Stunden            Schule]:[Stunden                 ohne Zuteilung]])","v":0}]
[null,12,null,null,null,null,{"$f":"SUM(tblMonth1[[#This Row],[Stunden            Schule]:[Stunden                 ohne Zuteilung]])","v":0}]
[null,13,null,null,null,null,{"$f":"SUM(tblMonth1[[#This Row],[Stunden            Schule]:[Stunden                 ohne Zuteilung]])","v":0}]
[null,14,null,null,null,null,{"$f":"SUM(tblMonth1[[#This Row],[Stunden            Schule]:[Stunden                 ohne Zuteilung]])","v":0}]
[null,15,null,null,null,null,{"$f":"SUM(tblMonth1[[#This Row],[Stunden            Schule]:[Stunden                 ohne Zuteilung]])","v":0}]
[null,16,null,null,null,null,{"$f":"SUM(tblMonth1[[#This Row],[Stunden            Schule]:[Stunden                 ohne Zuteilung]])","v":0}]
[null,17,null,null,null,null,{"$f":"SUM(tblMonth1[[#This Row],[Stunden            Schule]:[Stunden                 ohne Zuteilung]])","v":0}]
[null,18,null,null,null,null,{"$f":"SUM(tblMonth1[[#This Row],[Stunden            Schule]:[Stunden                 ohne Zuteilung]])","v":0}]
[null,19,null,null,null,null,{"$f":"SUM(tblMonth1[[#This Row],[Stunden            Schule]:[Stunden                 ohne Zuteilung]])","v":0}]
[null,20,null,null,null,null,{"$f":"SUM(tblMonth1[[#This Row],[Stunden            Schule]:[Stunden                 ohne Zuteilung]])","v":0}]
[null,21,null,null,null,null,{"$f":"SUM(tblMonth1[[#This Row],[Stunden            Schule]:[Stunden                 ohne Zuteilung]])","v":0}]
[null,22,null,null,null,null,{"$f":"SUM(tblMonth1[[#This Row],[Stunden            Schule]:[Stunden                 ohne Zuteilung]])","v":0}]
[null,23,null,null,null,null,{"$f":"SUM(tblMonth1[[#This Row],[Stunden            Schule]:[Stunden                 ohne Zuteilung]])","v":0}]
[null,24,null,null,null,null,{"$f":"SUM(tblMonth1[[#This Row],[Stunden            Schule]:[Stunden                 ohne Zuteilung]])","v":0}]
[null,25,null,null,null,null,{"$f":"SUM(tblMonth1[[#This Row],[Stunden            Schule]:[Stunden                 ohne Zuteilung]])","v":0}]
[null,26,null,null,null,null,{"$f":"SUM(tblMonth1[[#This Row],[Stunden            Schule]:[Stunden                 ohne Zuteilung]])","v":0}]
[null,27,null,null,null,null,{"$f":"SUM(tblMonth1[[#This Row],[Stunden            Schule]:[Stunden                 ohne Zuteilung]])","v":0}]
[null,28,null,null,null,null,{"$f":"SUM(tblMonth1[[#This Row],[Stunden            Schule]:[Stunden                 ohne Zuteilung]])","v":0}]
[null,29,null,null,null,null,{"$f":"SUM(tblMonth1[[#This Row],[Stunden            Schule]:[Stunden                 ohne Zuteilung]])","v":0}]
[null,30,null,null,null,null,{"$f":"SUM(tblMonth1[[#This Row],[Stunden            Schule]:[Stunden                 ohne Zuteilung]])","v":0}]
[null,31,null,null,null,null,{"$f":"SUM(tblMonth1[[#This Row],[Stunden            Schule]:[Stunden                 ohne Zuteilung]])","v":0}]
[]
[null,"TOTAL",null,null,null,null,{"$f":"SUM(G7:G38)","v":0}]
[]
[]
[null,"Datum",null,null,"Unterschrift"]

{"sheet":"Feb","index":8,"n_rows":42,"n_cols":8,"rows_kept":42,"cut":false,"hidden":false,"merged":[[0,3,0,4],[41,1,42,1],[41,2,42,2],[41,4,42,4],[41,5,42,6]]}
[null,"Zeiterfassung",null,{"$f":"Mitarbeiter","v":0},null,{"$f":"Schuljahr","v":0},"Monat","Februar"]
[]
[]
[]
[]
[null,"Tag ","Stunden               Schule","Stunden Zusammenarbeit","Stunden Weiterbildung","Stunden            ohne Zuteilung","Summe","Kommentar"]
[null,1,null,null,null,null,{"$f":"SUM(tblMonth2[[#This Row],[Stunden               Schule]:[Stunden            ohne Zuteilung]])","v":0}]
[null,{"$f":"B7+1","v":2},null,null,null,null,{"$f":"SUM(tblMonth2[[#This Row],[Stunden               Schule]:[Stunden            ohne Zuteilung]])","v":0}]
[null,{"$f":"B8+1","v":3},null,null,null,null,{"$f":"SUM(tblMonth2[[#This Row],[Stunden               Schule]:[Stunden            ohne Zuteilung]])","v":0}]
[null,4,null,null,null,null,{"$f":"SUM(tblMonth2[[#This Row],[Stunden               Schule]:[Stunden            ohne Zuteilung]])","v":0}]
[null,5,null,null,null,null,{"$f":"SUM(tblMonth2[[#This Row],[Stunden               Schule]:[Stunden            ohne Zuteilung]])","v":0}]
[null,6,null,null,null,null,{"$f":"SUM(tblMonth2[[#This Row],[Stunden               Schule]:[Stunden            ohne Zuteilung]])","v":0}]
[null,7,null,null,null,null,{"$f":"SUM(tblMonth2[[#This Row],[Stunden               Schule]:[Stunden            ohne Zuteilung]])","v":0}]
[null,8,null,null,null,null,{"$f":"SUM(tblMonth2[[#This Row],[Stunden               Schule]:[Stunden            ohne Zuteilung]])","v":0}]
[null,9,null,null,null,null,{"$f":"SUM(tblMonth2[[#This Row],[Stunden               Schule]:[Stunden            ohne Zuteilung]])","v":0}]
[null,10,null,null,null,null,{"$f":"SUM(tblMonth2[[#This Row],[Stunden               Schule]:[Stunden            ohne Zuteilung]])","v":0}]
[null,11,null,null,null,null,{"$f":"SUM(tblMonth2[[#This Row],[Stunden               Schule]:[Stunden            ohne Zuteilung]])","v":0}]
[null,12,null,null,null,null,{"$f":"SUM(tblMonth2[[#This Row],[Stunden               Schule]:[Stunden            ohne Zuteilung]])","v":0}]
[null,13,null,null,null,null,{"$f":"SUM(tblMonth2[[#This Row],[Stunden               Schule]:[Stunden            ohne Zuteilung]])","v":0}]
[null,14,null,null,null,null,{"$f":"SUM(tblMonth2[[#This Row],[Stunden               Schule]:[Stunden            ohne Zuteilung]])","v":0}]
[null,15,null,null,null,null,{"$f":"SUM(tblMonth2[[#This Row],[Stunden               Schule]:[Stunden            ohne Zuteilung]])","v":0}]
[null,16,null,null,null,null,{"$f":"SUM(tblMonth2[[#This Row],[Stunden               Schule]:[Stunden            ohne Zuteilung]])","v":0}]
[null,17,null,null,null,null,{"$f":"SUM(tblMonth2[[#This Row],[Stunden               Schule]:[Stunden            ohne Zuteilung]])","v":0}]
[null,18,null,null,null,null,{"$f":"SUM(tblMonth2[[#This Row],[Stunden               Schule]:[Stunden            ohne Zuteilung]])","v":0}]
[null,19,null,null,null,null,{"$f":"SUM(tblMonth2[[#This Row],[Stunden               Schule]:[Stunden            ohne Zuteilung]])","v":0}]
[null,20,null,null,null,null,{"$f":"SUM(tblMonth2[[#This Row],[Stunden               Schule]:[Stunden            ohne Zuteilung]])","v":0}]
[null,21,null,null,null,null,{"$f":"SUM(tblMonth2[[#This Row],[Stunden               Schule]:[Stunden            ohne Zuteilung]])","v":0}]
[null,22,null,null,null,null,{"$f":"SUM(tblMonth2[[#This Row],[Stunden               Schule]:[Stunden            ohne Zuteilung]])","v":0}]
[null,23,null,null,null,null,{"$f":"SUM(tblMonth2[[#This Row],[Stunden               Schule]:[Stunden            ohne Zuteilung]])","v":0}]
[null,24,null,null,null,null,{"$f":"SUM(tblMonth2[[#This Row],[Stunden               Schule]:[Stunden            ohne Zuteilung]])","v":0}]
[null,25,null,null,null,null,{"$f":"SUM(tblMonth2[[#This Row],[Stunden               Schule]:[Stunden            ohne Zuteilung]])","v":0}]
[null,26,null,null,null,null,{"$f":"SUM(tblMonth2[[#This Row],[Stunden               Schule]:[Stunden            ohne Zuteilung]])","v":0}]
[null,27,null,null,null,null,{"$f":"SUM(tblMonth2[[#This Row],[Stunden               Schule]:[Stunden            ohne Zuteilung]])","v":0}]
[null,28,null,null,null,null,{"$f":"SUM(tblMonth2[[#This Row],[Stunden               Schule]:[Stunden            ohne Zuteilung]])","v":0}]
[null,29,null,null,null,null,{"$f":"SUM(tblMonth2[[#This Row],[Stunden               Schule]:[Stunden            ohne Zuteilung]])","v":0}]
[null,null,null,null,null,null,{"$f":"SUM(tblMonth2[[#This Row],[Stunden               Schule]:[Stunden            ohne Zuteilung]])","v":0}]
[null,null,null,null,null,null,{"$f":"SUM(tblMonth2[[#This Row],[Stunden               Schule]:[Stunden            ohne Zuteilung]])","v":0}]
[]
[null,"TOTAL",null,null,null,null,{"$f":"SUM(G7:G38)","v":0}]
[]
[]
[null,"Datum",null,null,"Unterschrift"]

{"sheet":"Mar","index":9,"n_rows":42,"n_cols":8,"rows_kept":42,"cut":false,"hidden":false,"merged":[[0,3,0,4],[41,1,42,1],[41,2,42,2],[41,4,42,4],[41,5,42,6]]}
[null,"Zeiterfassung",null,{"$f":"Mitarbeiter","v":0},null,{"$f":"Schuljahr","v":0},"Monat","März"]
[]
[]
[]
[]
[null,"Tag ","Stunden            Schule","Stunden Zusammenarbeit","Stunden Weiterbildung","Stunden                ohne Zuteilung","Summe","Kommentar"]
[null,1,null,null,null,null,{"$f":"SUM(tblMonth3[[#This Row],[Stunden            Schule]:[Stunden                ohne Zuteilung]])","v":0}]
[null,{"$f":"B7+1","v":2},null,null,null,null,{"$f":"SUM(tblMonth3[[#This Row],[Stunden            Schule]:[Stunden                ohne Zuteilung]])","v":0}]
[null,{"$f":"B8+1","v":3},null,null,null,null,{"$f":"SUM(tblMonth3[[#This Row],[Stunden            Schule]:[Stunden                ohne Zuteilung]])","v":0}]
[null,4,null,null,null,null,{"$f":"SUM(tblMonth3[[#This Row],[Stunden            Schule]:[Stunden                ohne Zuteilung]])","v":0}]
[null,5,null,null,null,null,{"$f":"SUM(tblMonth3[[#This Row],[Stunden            Schule]:[Stunden                ohne Zuteilung]])","v":0}]
[null,6,null,null,null,null,{"$f":"SUM(tblMonth3[[#This Row],[Stunden            Schule]:[Stunden                ohne Zuteilung]])","v":0}]
[null,7,null,null,null,null,{"$f":"SUM(tblMonth3[[#This Row],[Stunden            Schule]:[Stunden                ohne Zuteilung]])","v":0}]
[null,8,null,null,null,null,{"$f":"SUM(tblMonth3[[#This Row],[Stunden            Schule]:[Stunden                ohne Zuteilung]])","v":0}]
[null,9,null,null,null,null,{"$f":"SUM(tblMonth3[[#This Row],[Stunden            Schule]:[Stunden                ohne Zuteilung]])","v":0}]
[null,10,null,null,null,null,{"$f":"SUM(tblMonth3[[#This Row],[Stunden            Schule]:[Stunden                ohne Zuteilung]])","v":0}]
[null,11,null,null,null,null,{"$f":"SUM(tblMonth3[[#This Row],[Stunden            Schule]:[Stunden                ohne Zuteilung]])","v":0}]
[null,12,null,null,null,null,{"$f":"SUM(tblMonth3[[#This Row],[Stunden            Schule]:[Stunden                ohne Zuteilung]])","v":0}]
[null,13,null,null,null,null,{"$f":"SUM(tblMonth3[[#This Row],[Stunden            Schule]:[Stunden                ohne Zuteilung]])","v":0}]
[null,14,null,null,null,null,{"$f":"SUM(tblMonth3[[#This Row],[Stunden            Schule]:[Stunden                ohne Zuteilung]])","v":0}]
[null,15,null,null,null,null,{"$f":"SUM(tblMonth3[[#This Row],[Stunden            Schule]:[Stunden                ohne Zuteilung]])","v":0}]
[null,16,null,null,null,null,{"$f":"SUM(tblMonth3[[#This Row],[Stunden            Schule]:[Stunden                ohne Zuteilung]])","v":0}]
[null,17,null,null,null,null,{"$f":"SUM(tblMonth3[[#This Row],[Stunden            Schule]:[Stunden                ohne Zuteilung]])","v":0}]
[null,18,null,null,null,null,{"$f":"SUM(tblMonth3[[#This Row],[Stunden            Schule]:[Stunden                ohne Zuteilung]])","v":0}]
[null,19,null,null,null,null,{"$f":"SUM(tblMonth3[[#This Row],[Stunden            Schule]:[Stunden                ohne Zuteilung]])","v":0}]
[null,20,null,null,null,null,{"$f":"SUM(tblMonth3[[#This Row],[Stunden            Schule]:[Stunden                ohne Zuteilung]])","v":0}]
[null,21,null,null,null,null,{"$f":"SUM(tblMonth3[[#This Row],[Stunden            Schule]:[Stunden                ohne Zuteilung]])","v":0}]
[null,22,null,null,null,null,{"$f":"SUM(tblMonth3[[#This Row],[Stunden            Schule]:[Stunden                ohne Zuteilung]])","v":0}]
[null,23,null,null,null,null,{"$f":"SUM(tblMonth3[[#This Row],[Stunden            Schule]:[Stunden                ohne Zuteilung]])","v":0}]
[null,24,null,null,null,null,{"$f":"SUM(tblMonth3[[#This Row],[Stunden            Schule]:[Stunden                ohne Zuteilung]])","v":0}]
[null,25,null,null,null,null,{"$f":"SUM(tblMonth3[[#This Row],[Stunden            Schule]:[Stunden                ohne Zuteilung]])","v":0}]
[null,26,null,null,null,null,{"$f":"SUM(tblMonth3[[#This Row],[Stunden            Schule]:[Stunden                ohne Zuteilung]])","v":0}]
[null,27,null,null,null,null,{"$f":"SUM(tblMonth3[[#This Row],[Stunden            Schule]:[Stunden                ohne Zuteilung]])","v":0}]
[null,28,null,null,null,null,{"$f":"SUM(tblMonth3[[#This Row],[Stunden            Schule]:[Stunden                ohne Zuteilung]])","v":0}]
[null,29,null,null,null,null,{"$f":"SUM(tblMonth3[[#This Row],[Stunden            Schule]:[Stunden                ohne Zuteilung]])","v":0}]
[null,30,null,null,null,null,{"$f":"SUM(tblMonth3[[#This Row],[Stunden            Schule]:[Stunden                ohne Zuteilung]])","v":0}]
[null,31,null,null,null,null,{"$f":"SUM(tblMonth3[[#This Row],[Stunden            Schule]:[Stunden                ohne Zuteilung]])","v":0}]
[]
[null,"TOTAL",null,null,null,null,{"$f":"SUM(G7:G38)","v":0}]
[]
[]
[null,"Datum",null,null,"Unterschrift"]

{"sheet":"Apr","index":10,"n_rows":42,"n_cols":8,"rows_kept":42,"cut":false,"hidden":false,"merged":[[0,3,0,4],[41,1,42,1],[41,2,42,2],[41,4,42,4],[41,5,42,6]]}
[null,"Zeiterfassung",null,{"$f":"Mitarbeiter","v":0},null,{"$f":"Schuljahr","v":0},"Monat","April"]
[]
[]
[]
[]
[null,"Tag ","Stunden              Schule","Stunden Zusammenarbeit","Stunden Weiterbildung","Stunden              ohne Zuteilung","Summe","Kommentar"]
[null,1,null,null,null,null,{"$f":"SUM(tblMonth4[[#This Row],[Stunden              Schule]:[Stunden              ohne Zuteilung]])","v":0}]
[null,{"$f":"B7+1","v":2},null,null,null,null,{"$f":"SUM(tblMonth4[[#This Row],[Stunden              Schule]:[Stunden              ohne Zuteilung]])","v":0}]
[null,{"$f":"B8+1","v":3},null,null,null,null,{"$f":"SUM(tblMonth4[[#This Row],[Stunden              Schule]:[Stunden              ohne Zuteilung]])","v":0}]
[null,4,null,null,null,null,{"$f":"SUM(tblMonth4[[#This Row],[Stunden              Schule]:[Stunden              ohne Zuteilung]])","v":0}]
[null,5,null,null,null,null,{"$f":"SUM(tblMonth4[[#This Row],[Stunden              Schule]:[Stunden              ohne Zuteilung]])","v":0}]
[null,6,null,null,null,null,{"$f":"SUM(tblMonth4[[#This Row],[Stunden              Schule]:[Stunden              ohne Zuteilung]])","v":0}]
[null,7,null,null,null,null,{"$f":"SUM(tblMonth4[[#This Row],[Stunden              Schule]:[Stunden              ohne Zuteilung]])","v":0}]
[null,8,null,null,null,null,{"$f":"SUM(tblMonth4[[#This Row],[Stunden              Schule]:[Stunden              ohne Zuteilung]])","v":0}]
[null,9,null,null,null,null,{"$f":"SUM(tblMonth4[[#This Row],[Stunden              Schule]:[Stunden              ohne Zuteilung]])","v":0}]
[null,10,null,null,null,null,{"$f":"SUM(tblMonth4[[#This Row],[Stunden              Schule]:[Stunden              ohne Zuteilung]])","v":0}]
[null,11,null,null,null,null,{"$f":"SUM(tblMonth4[[#This Row],[Stunden              Schule]:[Stunden              ohne Zuteilung]])","v":0}]
[null,12,null,null,null,null,{"$f":"SUM(tblMonth4[[#This Row],[Stunden              Schule]:[Stunden              ohne Zuteilung]])","v":0}]
[null,13,null,null,null,null,{"$f":"SUM(tblMonth4[[#This Row],[Stunden              Schule]:[Stunden              ohne Zuteilung]])","v":0}]
[null,14,null,null,null,null,{"$f":"SUM(tblMonth4[[#This Row],[Stunden              Schule]:[Stunden              ohne Zuteilung]])","v":0}]
[null,15,null,null,null,null,{"$f":"SUM(tblMonth4[[#This Row],[Stunden              Schule]:[Stunden              ohne Zuteilung]])","v":0}]
[null,16,null,null,null,null,{"$f":"SUM(tblMonth4[[#This Row],[Stunden              Schule]:[Stunden              ohne Zuteilung]])","v":0}]
[null,17,null,null,null,null,{"$f":"SUM(tblMonth4[[#This Row],[Stunden              Schule]:[Stunden              ohne Zuteilung]])","v":0}]
[null,18,null,null,null,null,{"$f":"SUM(tblMonth4[[#This Row],[Stunden              Schule]:[Stunden              ohne Zuteilung]])","v":0}]
[null,19,null,null,null,null,{"$f":"SUM(tblMonth4[[#This Row],[Stunden              Schule]:[Stunden              ohne Zuteilung]])","v":0}]
[null,20,null,null,null,null,{"$f":"SUM(tblMonth4[[#This Row],[Stunden              Schule]:[Stunden              ohne Zuteilung]])","v":0}]
[null,21,null,null,null,null,{"$f":"SUM(tblMonth4[[#This Row],[Stunden              Schule]:[Stunden              ohne Zuteilung]])","v":0}]
[null,22,null,null,null,null,{"$f":"SUM(tblMonth4[[#This Row],[Stunden              Schule]:[Stunden              ohne Zuteilung]])","v":0}]
[null,23,null,null,null,null,{"$f":"SUM(tblMonth4[[#This Row],[Stunden              Schule]:[Stunden              ohne Zuteilung]])","v":0}]
[null,24,null,null,null,null,{"$f":"SUM(tblMonth4[[#This Row],[Stunden              Schule]:[Stunden              ohne Zuteilung]])","v":0}]
[null,25,null,null,null,null,{"$f":"SUM(tblMonth4[[#This Row],[Stunden              Schule]:[Stunden              ohne Zuteilung]])","v":0}]
[null,26,null,null,null,null,{"$f":"SUM(tblMonth4[[#This Row],[Stunden              Schule]:[Stunden              ohne Zuteilung]])","v":0}]
[null,27,null,null,null,null,{"$f":"SUM(tblMonth4[[#This Row],[Stunden              Schule]:[Stunden              ohne Zuteilung]])","v":0}]
[null,28,null,null,null,null,{"$f":"SUM(tblMonth4[[#This Row],[Stunden              Schule]:[Stunden              ohne Zuteilung]])","v":0}]
[null,29,null,null,null,null,{"$f":"SUM(tblMonth4[[#This Row],[Stunden              Schule]:[Stunden              ohne Zuteilung]])","v":0}]
[null,30,null,null,null,null,{"$f":"SUM(tblMonth4[[#This Row],[Stunden              Schule]:[Stunden              ohne Zuteilung]])","v":0}]
[null,null,null,null,null,null,{"$f":"SUM(tblMonth4[[#This Row],[Stunden              Schule]:[Stunden              ohne Zuteilung]])","v":0}]
[]
[null,"TOTAL",null,null,null,null,{"$f":"SUM(G7:G38)","v":0}]
[]
[]
[null,"Datum",null,null,"Unterschrift"]

{"sheet":"Mai","index":11,"n_rows":42,"n_cols":8,"rows_kept":42,"cut":false,"hidden":false,"merged":[[0,3,0,4],[41,1,42,1],[41,2,42,2],[41,4,42,4],[41,5,42,6]]}
[null,"Zeiterfassung",null,{"$f":"Mitarbeiter","v":0},null,{"$f":"Schuljahr","v":0},"Monat","Mai"]
[]
[]
[]
[]
[null,"Tag ","Stunden            Schule","Stunden Zusammenarbeit","Stunden Weiterbildung","Stunden                ohne Zuteilung","Summe","Kommentar"]
[null,1,null,null,null,null,{"$f":"SUM(tblMonth5[[#This Row],[Stunden            Schule]:[Stunden                ohne Zuteilung]])","v":0}]
[null,{"$f":"B7+1","v":2},null,null,null,null,{"$f":"SUM(tblMonth5[[#This Row],[Stunden            Schule]:[Stunden                ohne Zuteilung]])","v":0}]
[null,{"$f":"B8+1","v":3},null,null,null,null,{"$f":"SUM(tblMonth5[[#This Row],[Stunden            Schule]:[Stunden                ohne Zuteilung]])","v":0}]
[null,4,null,null,null,null,{"$f":"SUM(tblMonth5[[#This Row],[Stunden            Schule]:[Stunden                ohne Zuteilung]])","v":0}]
[null,5,null,null,null,null,{"$f":"SUM(tblMonth5[[#This Row],[Stunden            Schule]:[Stunden                ohne Zuteilung]])","v":0}]
[null,6,null,null,null,null,{"$f":"SUM(tblMonth5[[#This Row],[Stunden            Schule]:[Stunden                ohne Zuteilung]])","v":0}]
[null,7,null,null,null,null,{"$f":"SUM(tblMonth5[[#This Row],[Stunden            Schule]:[Stunden                ohne Zuteilung]])","v":0}]
[null,8,null,null,null,null,{"$f":"SUM(tblMonth5[[#This Row],[Stunden            Schule]:[Stunden                ohne Zuteilung]])","v":0}]
[null,9,null,null,null,null,{"$f":"SUM(tblMonth5[[#This Row],[Stunden            Schule]:[Stunden                ohne Zuteilung]])","v":0}]
[null,10,null,null,null,null,{"$f":"SUM(tblMonth5[[#This Row],[Stunden            Schule]:[Stunden                ohne Zuteilung]])","v":0}]
[null,11,null,null,null,null,{"$f":"SUM(tblMonth5[[#This Row],[Stunden            Schule]:[Stunden                ohne Zuteilung]])","v":0}]
[null,12,null,null,null,null,{"$f":"SUM(tblMonth5[[#This Row],[Stunden            Schule]:[Stunden                ohne Zuteilung]])","v":0}]
[null,13,null,null,null,null,{"$f":"SUM(tblMonth5[[#This Row],[Stunden            Schule]:[Stunden                ohne Zuteilung]])","v":0}]
[null,14,null,null,null,null,{"$f":"SUM(tblMonth5[[#This Row],[Stunden            Schule]:[Stunden                ohne Zuteilung]])","v":0}]
[null,15,null,null,null,null,{"$f":"SUM(tblMonth5[[#This Row],[Stunden            Schule]:[Stunden                ohne Zuteilung]])","v":0}]
[null,16,null,null,null,null,{"$f":"SUM(tblMonth5[[#This Row],[Stunden            Schule]:[Stunden                ohne Zuteilung]])","v":0}]
[null,17,null,null,null,null,{"$f":"SUM(tblMonth5[[#This Row],[Stunden            Schule]:[Stunden                ohne Zuteilung]])","v":0}]
[null,18,null,null,null,null,{"$f":"SUM(tblMonth5[[#This Row],[Stunden            Schule]:[Stunden                ohne Zuteilung]])","v":0}]
[null,19,null,null,null,null,{"$f":"SUM(tblMonth5[[#This Row],[Stunden            Schule]:[Stunden                ohne Zuteilung]])","v":0}]
[null,20,null,null,null,null,{"$f":"SUM(tblMonth5[[#This Row],[Stunden            Schule]:[Stunden                ohne Zuteilung]])","v":0}]
[null,21,null,null,null,null,{"$f":"SUM(tblMonth5[[#This Row],[Stunden            Schule]:[Stunden                ohne Zuteilung]])","v":0}]
[null,22,null,null,null,null,{"$f":"SUM(tblMonth5[[#This Row],[Stunden            Schule]:[Stunden                ohne Zuteilung]])","v":0}]
[null,23,null,null,null,null,{"$f":"SUM(tblMonth5[[#This Row],[Stunden            Schule]:[Stunden                ohne Zuteilung]])","v":0}]
[null,24,null,null,null,null,{"$f":"SUM(tblMonth5[[#This Row],[Stunden            Schule]:[Stunden                ohne Zuteilung]])","v":0}]
[null,25,null,null,null,null,{"$f":"SUM(tblMonth5[[#This Row],[Stunden            Schule]:[Stunden                ohne Zuteilung]])","v":0}]
[null,26,null,null,null,null,{"$f":"SUM(tblMonth5[[#This Row],[Stunden            Schule]:[Stunden                ohne Zuteilung]])","v":0}]
[null,27,null,null,null,null,{"$f":"SUM(tblMonth5[[#This Row],[Stunden            Schule]:[Stunden                ohne Zuteilung]])","v":0}]
[null,28,null,null,null,null,{"$f":"SUM(tblMonth5[[#This Row],[Stunden            Schule]:[Stunden                ohne Zuteilung]])","v":0}]
[null,29,null,null,null,null,{"$f":"SUM(tblMonth5[[#This Row],[Stunden            Schule]:[Stunden                ohne Zuteilung]])","v":0}]
[null,30,null,null,null,null,{"$f":"SUM(tblMonth5[[#This Row],[Stunden            Schule]:[Stunden                ohne Zuteilung]])","v":0}]
[null,31,null,null,null,null,{"$f":"SUM(tblMonth5[[#This Row],[Stunden            Schule]:[Stunden                ohne Zuteilung]])","v":0}]
[]
[null,"TOTAL",null,null,null,null,{"$f":"SUM(G7:G38)","v":0}]
[]
[]
[null,"Datum",null,null,"Unterschrift"]

{"sheet":"Jun","index":12,"n_rows":42,"n_cols":8,"rows_kept":42,"cut":false,"hidden":false,"merged":[[0,3,0,4],[41,1,42,1],[41,2,42,2],[41,4,42,4],[41,5,42,6]]}
[null,"Zeiterfassung",null,{"$f":"Mitarbeiter","v":0},null,{"$f":"Schuljahr","v":0},"Monat","Juni"]
[]
[]
[]
[]
[null,"Tag ","Stunden            Schule","Stunden Zusammenarbeit","Stunden Weiterbildung","Stunden                  ohne Zuteilung","Summe","Kommentar"]
[null,1,null,null,null,null,{"$f":"SUM(tblMonth6[[#This Row],[Stunden            Schule]:[Stunden                  ohne Zuteilung]])","v":0}]
[null,{"$f":"B7+1","v":2},null,null,null,null,{"$f":"SUM(tblMonth6[[#This Row],[Stunden            Schule]:[Stunden                  ohne Zuteilung]])","v":0}]
[null,{"$f":"B8+1","v":3},null,null,null,null,{"$f":"SUM(tblMonth6[[#This Row],[Stunden            Schule]:[Stunden                  ohne Zuteilung]])","v":0}]
[null,4,null,null,null,null,{"$f":"SUM(tblMonth6[[#This Row],[Stunden            Schule]:[Stunden                  ohne Zuteilung]])","v":0}]
[null,5,null,null,null,null,{"$f":"SUM(tblMonth6[[#This Row],[Stunden            Schule]:[Stunden                  ohne Zuteilung]])","v":0}]
[null,6,null,null,null,null,{"$f":"SUM(tblMonth6[[#This Row],[Stunden            Schule]:[Stunden                  ohne Zuteilung]])","v":0}]
[null,7,null,null,null,null,{"$f":"SUM(tblMonth6[[#This Row],[Stunden            Schule]:[Stunden                  ohne Zuteilung]])","v":0}]
[null,8,null,null,null,null,{"$f":"SUM(tblMonth6[[#This Row],[Stunden            Schule]:[Stunden                  ohne Zuteilung]])","v":0}]
[null,9,null,null,null,null,{"$f":"SUM(tblMonth6[[#This Row],[Stunden            Schule]:[Stunden                  ohne Zuteilung]])","v":0}]
[null,10,null,null,null,null,{"$f":"SUM(tblMonth6[[#This Row],[Stunden            Schule]:[Stunden                  ohne Zuteilung]])","v":0}]
[null,11,null,null,null,null,{"$f":"SUM(tblMonth6[[#This Row],[Stunden            Schule]:[Stunden                  ohne Zuteilung]])","v":0}]
[null,12,null,null,null,null,{"$f":"SUM(tblMonth6[[#This Row],[Stunden            Schule]:[Stunden                  ohne Zuteilung]])","v":0}]
[null,13,null,null,null,null,{"$f":"SUM(tblMonth6[[#This Row],[Stunden            Schule]:[Stunden                  ohne Zuteilung]])","v":0}]
[null,14,null,null,null,null,{"$f":"SUM(tblMonth6[[#This Row],[Stunden            Schule]:[Stunden                  ohne Zuteilung]])","v":0}]
[null,15,null,null,null,null,{"$f":"SUM(tblMonth6[[#This Row],[Stunden            Schule]:[Stunden                  ohne Zuteilung]])","v":0}]
[null,16,null,null,null,null,{"$f":"SUM(tblMonth6[[#This Row],[Stunden            Schule]:[Stunden                  ohne Zuteilung]])","v":0}]
[null,17,null,null,null,null,{"$f":"SUM(tblMonth6[[#This Row],[Stunden            Schule]:[Stunden                  ohne Zuteilung]])","v":0}]
[null,18,null,null,null,null,{"$f":"SUM(tblMonth6[[#This Row],[Stunden            Schule]:[Stunden                  ohne Zuteilung]])","v":0}]
[null,19,null,null,null,null,{"$f":"SUM(tblMonth6[[#This Row],[Stunden            Schule]:[Stunden                  ohne Zuteilung]])","v":0}]
[null,20,null,null,null,null,{"$f":"SUM(tblMonth6[[#This Row],[Stunden            Schule]:[Stunden                  ohne Zuteilung]])","v":0}]
[null,21,null,null,null,null,{"$f":"SUM(tblMonth6[[#This Row],[Stunden            Schule]:[Stunden                  ohne Zuteilung]])","v":0}]
[null,22,null,null,null,null,{"$f":"SUM(tblMonth6[[#This Row],[Stunden            Schule]:[Stunden                  ohne Zuteilung]])","v":0}]
[null,23,null,null,null,null,{"$f":"SUM(tblMonth6[[#This Row],[Stunden            Schule]:[Stunden                  ohne Zuteilung]])","v":0}]
[null,24,null,null,null,null,{"$f":"SUM(tblMonth6[[#This Row],[Stunden            Schule]:[Stunden                  ohne Zuteilung]])","v":0}]
[null,25,null,null,null,null,{"$f":"SUM(tblMonth6[[#This Row],[Stunden            Schule]:[Stunden                  ohne Zuteilung]])","v":0}]
[null,26,null,null,null,null,{"$f":"SUM(tblMonth6[[#This Row],[Stunden            Schule]:[Stunden                  ohne Zuteilung]])","v":0}]
[null,27,null,null,null,null,{"$f":"SUM(tblMonth6[[#This Row],[Stunden            Schule]:[Stunden                  ohne Zuteilung]])","v":0}]
[null,28,null,null,null,null,{"$f":"SUM(tblMonth6[[#This Row],[Stunden            Schule]:[Stunden                  ohne Zuteilung]])","v":0}]
[null,29,null,null,null,null,{"$f":"SUM(tblMonth6[[#This Row],[Stunden            Schule]:[Stunden                  ohne Zuteilung]])","v":0}]
[null,30,null,null,null,null,{"$f":"SUM(tblMonth6[[#This Row],[Stunden            Schule]:[Stunden                  ohne Zuteilung]])","v":0}]
[null,null,null,null,null,null,{"$f":"SUM(tblMonth6[[#This Row],[Stunden            Schule]:[Stunden                  ohne Zuteilung]])","v":0}]
[]
[null,"TOTAL",null,null,null,null,{"$f":"SUM(G7:G38)","v":0}]
[]
[]
[null,"Datum",null,null,"Unterschrift"]

{"sheet":"Jul","index":13,"n_rows":42,"n_cols":8,"rows_kept":42,"cut":false,"hidden":false,"merged":[[0,3,0,4],[41,1,42,1],[41,2,42,2],[41,4,42,4],[41,5,42,6]]}
[null,"Zeiterfassung",null,{"$f":"Mitarbeiter","v":0},null,{"$f":"Schuljahr","v":0},"Monat","Juli"]
[]
[]
[]
[]
[null,"Tag ","Stunden              Schule","Stunden Zusammenarbeit","Stunden Weiterbildung","Stunden            ohne Zuteilung","Summe","Kommentar"]
[null,1,null,null,null,null,{"$f":"SUM(tblMonth7[[#This Row],[Stunden              Schule]:[Stunden            ohne Zuteilung]])","v":0}]
[null,{"$f":"B7+1","v":2},null,null,null,null,{"$f":"SUM(tblMonth7[[#This Row],[Stunden              Schule]:[Stunden            ohne Zuteilung]])","v":0}]
[null,{"$f":"B8+1","v":3},null,null,null,null,{"$f":"SUM(tblMonth7[[#This Row],[Stunden              Schule]:[Stunden            ohne Zuteilung]])","v":0}]
[null,4,null,null,null,null,{"$f":"SUM(tblMonth7[[#This Row],[Stunden              Schule]:[Stunden            ohne Zuteilung]])","v":0}]
[null,5,null,null,null,null,{"$f":"SUM(tblMonth7[[#This Row],[Stunden              Schule]:[Stunden            ohne Zuteilung]])","v":0}]
[null,6,null,null,null,null,{"$f":"SUM(tblMonth7[[#This Row],[Stunden              Schule]:[Stunden            ohne Zuteilung]])","v":0}]
[null,7,null,null,null,null,{"$f":"SUM(tblMonth7[[#This Row],[Stunden              Schule]:[Stunden            ohne Zuteilung]])","v":0}]
[null,8,null,null,null,null,{"$f":"SUM(tblMonth7[[#This Row],[Stunden              Schule]:[Stunden            ohne Zuteilung]])","v":0}]
[null,9,null,null,null,null,{"$f":"SUM(tblMonth7[[#This Row],[Stunden              Schule]:[Stunden            ohne Zuteilung]])","v":0}]
[null,10,null,null,null,null,{"$f":"SUM(tblMonth7[[#This Row],[Stunden              Schule]:[Stunden            ohne Zuteilung]])","v":0}]
[null,11,null,null,null,null,{"$f":"SUM(tblMonth7[[#This Row],[Stunden              Schule]:[Stunden            ohne Zuteilung]])","v":0}]
[null,12,null,null,null,null,{"$f":"SUM(tblMonth7[[#This Row],[Stunden              Schule]:[Stunden            ohne Zuteilung]])","v":0}]
[null,13,null,null,null,null,{"$f":"SUM(tblMonth7[[#This Row],[Stunden              Schule]:[Stunden            ohne Zuteilung]])","v":0}]
[null,14,null,null,null,null,{"$f":"SUM(tblMonth7[[#This Row],[Stunden              Schule]:[Stunden            ohne Zuteilung]])","v":0}]
[null,15,null,null,null,null,{"$f":"SUM(tblMonth7[[#This Row],[Stunden              Schule]:[Stunden            ohne Zuteilung]])","v":0}]
[null,16,null,null,null,null,{"$f":"SUM(tblMonth7[[#This Row],[Stunden              Schule]:[Stunden            ohne Zuteilung]])","v":0}]
[null,17,null,null,null,null,{"$f":"SUM(tblMonth7[[#This Row],[Stunden              Schule]:[Stunden            ohne Zuteilung]])","v":0}]
[null,18,null,null,null,null,{"$f":"SUM(tblMonth7[[#This Row],[Stunden              Schule]:[Stunden            ohne Zuteilung]])","v":0}]
[null,19,null,null,null,null,{"$f":"SUM(tblMonth7[[#This Row],[Stunden              Schule]:[Stunden            ohne Zuteilung]])","v":0}]
[null,20,null,null,null,null,{"$f":"SUM(tblMonth7[[#This Row],[Stunden              Schule]:[Stunden            ohne Zuteilung]])","v":0}]
[null,21,null,null,null,null,{"$f":"SUM(tblMonth7[[#This Row],[Stunden              Schule]:[Stunden            ohne Zuteilung]])","v":0}]
[null,22,null,null,null,null,{"$f":"SUM(tblMonth7[[#This Row],[Stunden              Schule]:[Stunden            ohne Zuteilung]])","v":0}]
[null,23,null,null,null,null,{"$f":"SUM(tblMonth7[[#This Row],[Stunden              Schule]:[Stunden            ohne Zuteilung]])","v":0}]
[null,24,null,null,null,null,{"$f":"SUM(tblMonth7[[#This Row],[Stunden              Schule]:[Stunden            ohne Zuteilung]])","v":0}]
[null,25,null,null,null,null,{"$f":"SUM(tblMonth7[[#This Row],[Stunden              Schule]:[Stunden            ohne Zuteilung]])","v":0}]
[null,26,null,null,null,null,{"$f":"SUM(tblMonth7[[#This Row],[Stunden              Schule]:[Stunden            ohne Zuteilung]])","v":0}]
[null,27,null,null,null,null,{"$f":"SUM(tblMonth7[[#This Row],[Stunden              Schule]:[Stunden            ohne Zuteilung]])","v":0}]
[null,28,null,null,null,null,{"$f":"SUM(tblMonth7[[#This Row],[Stunden              Schule]:[Stunden            ohne Zuteilung]])","v":0}]
[null,29,null,null,null,null,{"$f":"SUM(tblMonth7[[#This Row],[Stunden              Schule]:[Stunden            ohne Zuteilung]])","v":0}]
[null,30,null,null,null,null,{"$f":"SUM(tblMonth7[[#This Row],[Stunden              Schule]:[Stunden            ohne Zuteilung]])","v":0}]
[null,31,null,null,null,null,{"$f":"SUM(tblMonth7[[#This Row],[Stunden              Schule]:[Stunden            ohne Zuteilung]])","v":0}]
[]
[null,"TOTAL",null,null,null,null,{"$f":"SUM(G7:G38)","v":0}]
[]
[]
[null,"Datum",null,null,"Unterschrift"]